[Event "Masters Tournament (MTO)"]
[Site "Biel, Switzerland"]
[Date "2026.07.20"]
[Round "7.40"]
[White "Vedant, Nayudu"]
[Black "Celis, Joel"]
[Result "0-1"]
[TimeControl "100+30+30sec/move"]
[WhiteTitle "-"]
[BlackTitle "-"]
[WhiteFideId "33369780"]
[BlackFideId "15400212"]
[WhiteElo "1797"]
[BlackElo "1981"]

1. e4 {[%clk 01:40:57]} {[%emt 00:00:05]} d5 {[%clk 01:34:36]} {[%emt
00:06:24]} 2. exd5 {[%clk 01:41:16]} {[%emt 00:00:11]} Qxd5 {[%clk 01:35:02]}
{[%emt 00:00:05]} 3. Nc3 {[%clk 01:41:40]} {[%emt 00:00:05]} Qa5 {[%clk
01:35:26]} {[%emt 00:00:06]} 4. d4 {[%clk 01:42:06]} {[%emt 00:00:04]} Nf6
{[%clk 01:35:43]} {[%emt 00:00:13]} 5. Nf3 {[%clk 01:42:30]} {[%emt 00:00:06]}
c6 {[%clk 01:36:08]} {[%emt 00:00:05]} 6. Ne5 {[%clk 01:40:01]} {[%emt
00:02:59]} Be6 {[%clk 01:34:52]} {[%emt 00:01:46]} 7. Bf4 {[%clk 01:26:21]}
{[%emt 00:14:10]} Nbd7 {[%clk 01:31:48]} {[%emt 00:03:34]} 8. Nc4 {[%clk
01:23:42]} {[%emt 00:03:09]} Qd8 {[%clk 01:28:10]} {[%emt 00:04:09]} 9. Qd2
{[%clk 01:17:56]} {[%emt 00:06:16]} b5 {[%clk 01:04:33]} {[%emt 00:24:07]} 10.
Ne5 {[%clk 01:13:01]} {[%emt 00:05:24]} Nxe5 {[%clk 01:04:46]} {[%emt
00:00:17]} 11. Bxe5 {[%clk 01:11:00]} {[%emt 00:02:32]} Nd7 {[%clk 01:04:54]}
{[%emt 00:00:21]} 12. Bf4 {[%clk 01:02:28]} {[%emt 00:09:02]} Nb6 {[%clk
00:45:38]} {[%emt 00:19:46]} 13. Be2 {[%clk 00:48:48]} {[%emt 00:14:10]} Nc4
{[%clk 00:40:58]} {[%emt 00:05:11]} 14. Bxc4 {[%clk 00:49:05]} {[%emt
00:00:13]} Bxc4 {[%clk 00:41:17]} {[%emt 00:00:11]} 15. b3 {[%clk 00:49:31]}
{[%emt 00:00:03]} Bd5 {[%clk 00:41:06]} {[%emt 00:00:41]} 16. O-O {[%clk
00:49:09]} {[%emt 00:00:52]} e6 {[%clk 00:29:45]} {[%emt 00:11:51]} 17. Qd3
{[%clk 00:40:52]} {[%emt 00:08:48]} Be7 {[%clk 00:21:05]} {[%emt 00:09:09]} 18.
Ne2 {[%clk 00:30:51]} {[%emt 00:10:31]} b4 {[%clk 00:20:04]} {[%emt 00:01:31]}
19. Rfe1 {[%clk 00:25:00]} {[%emt 00:06:21]} O-O {[%clk 00:18:47]} {[%emt
00:01:47]} 20. a4 {[%clk 00:22:56]} {[%emt 00:02:35]} a5 {[%clk 00:16:42]}
{[%emt 00:02:34]} 21. Rad1 {[%clk 00:20:11]} {[%emt 00:03:15]} Rc8 {[%clk
00:16:18]} {[%emt 00:00:55]} 22. Be3 {[%clk 00:14:08]} {[%emt 00:06:33]} Bd6
{[%clk 00:15:06]} {[%emt 00:01:40]} 23. Nf4 {[%clk 00:13:25]} {[%emt 00:01:14]}
Qh4 {[%clk 00:13:15]} {[%emt 00:02:17]} 24. Qd2 {[%clk 00:07:20]} {[%emt
00:06:39]} Rfd8 {[%clk 00:10:43]} {[%emt 00:03:02]} 25. h3 {[%clk 00:06:57]}
{[%emt 00:00:53]} h6 {[%clk 00:10:21]} {[%emt 00:00:51]} 26. Nd3 {[%clk
00:05:03]} {[%emt 00:02:25]} Qe4 {[%clk 00:07:17]} {[%emt 00:03:34]} 27. f3
{[%clk 00:04:11]} {[%emt 00:01:22]} Qg6 {[%clk 00:07:36]} {[%emt 00:00:11]} 28.
Rf1 {[%clk 00:03:28]} {[%emt 00:01:14]} Qf6 {[%clk 00:05:04]} {[%emt 00:03:01]}
29. Qf2 {[%clk 00:02:21]} {[%emt 00:01:37]} Re8 {[%clk 00:04:13]} {[%emt
00:01:20]} 30. Nc5 {[%clk 00:01:11]} {[%emt 00:01:41]} Qg6 {[%clk 00:01:33]}
{[%emt 00:03:07]} 31. Ne4 {[%clk 00:00:41]} {[%emt 00:01:03]} Bb8 {[%clk
00:01:31]} {[%emt 00:00:26]} 32. g4 {[%clk 00:00:35]} {[%emt 00:00:42]} Rf8
{[%clk 00:01:33]} {[%emt 00:00:28]} 33. Ng3 {[%clk 00:00:39]} {[%emt 00:00:26]}
f5 {[%clk 00:01:17]} {[%emt 00:00:46]} 34. gxf5 {[%clk 00:00:36]} {[%emt
00:00:34]} Qxg3+ {[%clk 00:01:30]} {[%emt 00:00:17]} 35. Qxg3 {[%clk 00:00:53]}
{[%emt 00:00:12]} Bxg3 {[%clk 00:01:56]} {[%emt 00:00:04]} 36. fxe6 {[%clk
00:00:52]} {[%emt 00:00:31]} Bxe6 {[%clk 00:02:11]} {[%emt 00:00:15]} 37. Kg2
{[%clk 00:01:18]} {[%emt 00:00:04]} Bc7 {[%clk 00:01:52]} {[%emt 00:00:44]} 38.
f4 {[%clk 00:00:38]} {[%emt 00:01:15]} Rf6 {[%clk 00:01:37]} {[%emt 00:00:44]}
39. Rf2 {[%clk 00:00:35]} {[%emt 00:00:33]} Rcf8 {[%clk 00:01:52]} {[%emt
00:00:15]} 40. Rdf1 {[%clk 00:00:52]} {[%emt 00:00:14]} Rf5 {[%clk 00:01:42]}
{[%emt 00:00:41]} 41. h4 {[%clk 00:27:03]} {[%emt 00:04:17]} R8f6 {[%clk
00:31:20]} {[%emt 00:00:53]} 42. Re1 {[%clk 00:25:28]} {[%emt 00:02:04]} Bd5+
{[%clk 00:30:18]} {[%emt 00:01:33]} 43. Kh3 {[%clk 00:16:01]} {[%emt 00:09:57]}
Kf7 {[%clk 00:29:07]} {[%emt 00:01:41]} 44. Kg4 {[%clk 00:15:40]} {[%emt
00:00:50]} Be6 {[%clk 00:28:35]} {[%emt 00:01:01]} 45. Kg3 {[%clk 00:14:41]}
{[%emt 00:01:25]} Rg6+ {[%clk 00:26:34]} {[%emt 00:02:36]} 46. Kf3 {[%clk
00:12:38]} {[%emt 00:02:33]} Bd5+ {[%clk 00:26:39]} {[%emt 00:00:26]} 47. Ke2
{[%clk 00:13:02]} {[%emt 00:00:06]} Rg4 {[%clk 00:26:49]} {[%emt 00:00:20]} 48.
Ref1 {[%clk 00:09:39]} {[%emt 00:03:53]} Rxh4 {[%clk 00:27:07]} {[%emt
00:00:12]} 49. Kd3 {[%clk 00:09:46]} {[%emt 00:00:22]} Rh3 {[%clk 00:27:01]}
{[%emt 00:00:36]} 50. Kd2 {[%clk 00:08:52]} {[%emt 00:01:25]} Rh1 {[%clk
00:26:34]} {[%emt 00:00:56]} 51. Rxh1 {[%clk 00:07:45]} {[%emt 00:01:38]} Bxh1
{[%clk 00:26:59]} {[%emt 00:00:05]} 52. c4 {[%clk 00:06:44]} {[%emt 00:01:30]}
bxc3+ {[%clk 00:27:02]} {[%emt 00:00:28]} 53. Kxc3 {[%clk 00:07:11]} {[%emt
00:00:02]} Bd6 {[%clk 00:26:59]} {[%emt 00:00:32]} 54. Kd3 {[%clk 00:04:26]}
{[%emt 00:03:16]} Bd5 {[%clk 00:27:16]} {[%emt 00:00:13]} 55. Rb2 {[%clk
00:01:49]} {[%emt 00:03:07]} Kf6 {[%clk 00:27:06]} {[%emt 00:00:41]} 56. Bd2
{[%clk 00:01:49]} {[%emt 00:00:30]} Bb4 {[%clk 00:24:24]} {[%emt 00:03:12]} 57.
Bxb4 {[%clk 00:01:34]} {[%emt 00:00:45]} axb4 {[%clk 00:24:50]} {[%emt
00:00:04]} 58. a5 {[%clk 00:01:49]} {[%emt 00:00:15]} Be6 {[%clk 00:24:36]}
{[%emt 00:00:42]} 59. Ra2 {[%clk 00:01:07]} {[%emt 00:01:14]} Bxb3 {[%clk
00:24:41]} {[%emt 00:00:25]} 60. Ra1 {[%clk 00:01:31]} {[%emt 00:00:06]} Rd5
{[%clk 00:22:02]} {[%emt 00:03:09]} 61. a6 {[%clk 00:01:22]} {[%emt 00:00:39]}
Rd8 {[%clk 00:21:26]} {[%emt 00:01:06]} 62. a7 {[%clk 00:01:47]} {[%emt
00:00:06]} Ra8 {[%clk 00:21:45]} {[%emt 00:00:10]} 63. Rb1 {[%clk 00:00:39]}
{[%emt 00:01:38]} Rxa7 {[%clk 00:22:05]} {[%emt 00:00:10]} 64. Rxb3 {[%clk
00:00:55]} {[%emt 00:00:14]} Ra3 {[%clk 00:22:29]} {[%emt 00:00:06]} 65. Kc4
{[%clk 00:01:21]} {[%emt 00:00:04]} Rxb3 {[%clk 00:22:45]} {[%emt 00:00:15]} 66.
Kxb3 {[%clk 00:01:46]} {[%emt 00:00:04]} h5 {[%clk 00:23:05]} {[%emt 00:00:10]}
67. Kxb4 {[%clk 00:02:05]} {[%emt 00:00:10]} h4 {[%clk 00:23:13]} {[%emt
00:00:23]} 68. Kc5 {[%clk 00:02:16]} {[%emt 00:00:19]} h3 {[%clk 00:23:36]}
{[%emt 00:00:07]} 69. Kxc6 {[%clk 00:02:40]} {[%emt 00:00:05]} h2 {[%clk
00:24:00]} {[%emt 00:00:06]} 70. d5 {[%clk 00:03:03]} {[%emt 00:00:07]} h1=Q
{[%clk 00:24:21]} {[%emt 00:00:10]} 71. Kd6 {[%clk 00:02:54]} {[%emt 00:00:39]}
Qc1 {[%clk 00:24:15]} {[%emt 00:00:31]} 72. Kd7 {[%clk 00:03:14]} {[%emt
00:00:13]} Qxf4 {[%clk 00:24:36]} {[%emt 00:00:10]} 73. d6 {[%clk 00:03:35]}
{[%emt 00:00:09]} Qa4+ {[%clk 00:24:16]} {[%emt 00:00:50]} 74. Kc7 {[%clk
00:03:54]} {[%emt 00:00:11]} Ke6 {[%clk 00:24:38]} {[%emt 00:00:09]} 75. d7
{[%clk 00:04:02]} {[%emt 00:00:22]} Qxd7+ {[%clk 00:25:01]} {[%emt 00:00:07]}
76. Kb8 {[%clk 00:04:27]} {[%emt 00:00:05]} Kd6 {[%clk 00:25:22]} {[%emt
00:00:09]} 77. Ka8 {[%clk 00:04:24]} {[%emt 00:00:34]} Kc6 {[%clk 00:25:45]}
{[%emt 00:00:06]} 78. Kb8 {[%clk 00:04:43]} {[%emt 00:00:10]} Qb7# {[%clk
00:26:08]} {[%emt 00:00:07]} 0-1

[Event "Masters Tournament (MTO)"]
[Site "Biel, Switzerland"]
[Date "2026.07.20"]
[Round "7.41"]
[White "Damen, Josephine"]
[Black "Von Burg, Carl Alexander"]
[Result "0-1"]
[TimeControl "100+30+30sec/move"]
[WhiteTitle "-"]
[BlackTitle "-"]
[WhiteFideId "1074369"]
[BlackFideId "1352458"]
[WhiteElo "1971"]
[BlackElo "1947"]

1. e4 {[%clk 01:40:57]} {[%emt 00:00:02]} e5 {[%clk 01:40:56]} {[%emt
00:00:04]} 2. Nf3 {[%clk 01:41:23]} {[%emt 00:00:04]} Nc6 {[%clk 01:41:20]}
{[%emt 00:00:06]} 3. Bc4 {[%clk 01:41:47]} {[%emt 00:00:07]} Bc5 {[%clk
01:41:44]} {[%emt 00:00:06]} 4. c3 {[%clk 01:42:13]} {[%emt 00:00:06]} Nf6
{[%clk 01:41:53]} {[%emt 00:00:19]} 5. d4 {[%clk 01:42:37]} {[%emt 00:00:05]}
exd4 {[%clk 01:42:16]} {[%emt 00:00:07]} 6. cxd4 {[%clk 01:43:03]} {[%emt
00:00:05]} Bb4+ {[%clk 01:42:39]} {[%emt 00:00:07]} 7. Nbd2 {[%clk 01:43:28]}
{[%emt 00:00:05]} Nxe4 {[%clk 01:42:29]} {[%emt 00:00:39]} 8. d5 {[%clk
01:43:48]} {[%emt 00:00:10]} Ne7 {[%clk 01:42:10]} {[%emt 00:00:49]} 9. O-O
{[%clk 01:44:10]} {[%emt 00:00:08]} Nxd2 {[%clk 01:42:27]} {[%emt 00:00:14]} 10.
Bxd2 {[%clk 01:43:43]} {[%emt 00:00:57]} Bxd2 {[%clk 01:42:38]} {[%emt
00:00:20]} 11. d6 {[%clk 01:44:07]} {[%emt 00:00:05]} cxd6 {[%clk 01:42:41]}
{[%emt 00:00:27]} 12. Qxd2 {[%clk 01:44:32]} {[%emt 00:00:05]} d5 {[%clk
01:42:40]} {[%emt 00:00:30]} 13. Bxd5 {[%clk 01:43:03]} {[%emt 00:02:00]} O-O
{[%clk 01:40:01]} {[%emt 00:03:09]} 14. Rfe1 {[%clk 01:26:18]} {[%emt
00:17:15]} Nxd5 {[%clk 01:36:29]} {[%emt 00:04:02]} 15. Qxd5 {[%clk 01:26:44]}
{[%emt 00:00:05]} d6 {[%clk 01:36:03]} {[%emt 00:00:55]} 16. b3 {[%clk
01:08:20]} {[%emt 00:18:53]} a5 {[%clk 01:29:03]} {[%emt 00:07:30]} 17. Re4
{[%clk 00:59:40]} {[%emt 00:09:11]} Qf6 {[%clk 01:20:09]} {[%emt 00:09:23]} 18.
Rae1 {[%clk 00:47:31]} {[%emt 00:12:39]} h6 {[%clk 00:57:56]} {[%emt 00:22:43]}
19. Nd4 {[%clk 00:30:05]} {[%emt 00:17:57]} a4 {[%clk 00:45:56]} {[%emt
00:12:30]} 20. b4 {[%clk 00:30:30]} {[%emt 00:00:06]} Be6 {[%clk 00:43:41]}
{[%emt 00:02:44]} 21. Nxe6 {[%clk 00:18:06]} {[%emt 00:12:55]} fxe6 {[%clk
00:42:57]} {[%emt 00:01:13]} 22. Qxe6+ {[%clk 00:16:02]} {[%emt 00:02:35]} Qxe6
{[%clk 00:38:41]} {[%emt 00:04:45]} 23. Rxe6 {[%clk 00:16:28]} {[%emt
00:00:05]} Rac8 {[%clk 00:37:08]} {[%emt 00:02:02]} 24. f3 {[%clk 00:13:41]}
{[%emt 00:03:18]} Rc2 {[%clk 00:33:31]} {[%emt 00:04:06]} 25. R1e2 {[%clk
00:13:31]} {[%emt 00:00:41]} Rxe2 {[%clk 00:31:02]} {[%emt 00:02:58]} 26. Rxe2
{[%clk 00:13:56]} {[%emt 00:00:06]} Rc8 {[%clk 00:27:32]} {[%emt 00:03:59]} 27.
Kf2 {[%clk 00:13:16]} {[%emt 00:01:10]} Rc4 {[%clk 00:25:57]} {[%emt 00:02:06]}
28. a3 {[%clk 00:13:22]} {[%emt 00:00:25]} d5 {[%clk 00:25:07]} {[%emt
00:01:19]} 29. Re3 {[%clk 00:04:10]} {[%emt 00:09:41]} Kf7 {[%clk 00:22:23]}
{[%emt 00:03:15]} 30. Ke1 {[%clk 00:03:19]} {[%emt 00:01:21]} Rc2 {[%clk
00:21:01]} {[%emt 00:01:51]} 31. Re5 {[%clk 00:00:45]} {[%emt 00:03:04]} Rxg2
{[%clk 00:12:11]} {[%emt 00:09:21]} 32. Rxd5 {[%clk 00:01:12]} {[%emt
00:00:03]} Rxh2 {[%clk 00:10:53]} {[%emt 00:01:47]} 33. Rd7+ {[%clk 00:01:30]}
{[%emt 00:00:13]} Kf6 {[%clk 00:10:34]} {[%emt 00:00:48]} 34. Rxb7 {[%clk
00:01:55]} {[%emt 00:00:06]} Ra2 {[%clk 00:10:26]} {[%emt 00:00:38]} 35. Ra7
{[%clk 00:00:38]} {[%emt 00:01:47]} Rxa3 {[%clk 00:10:27]} {[%emt 00:00:29]} 36.
Kf2 {[%clk 00:01:05]} {[%emt 00:00:03]} h5 {[%clk 00:08:37]} {[%emt 00:02:19]}
37. b5 {[%clk 00:01:06]} {[%emt 00:00:29]} Rb3 {[%clk 00:08:23]} {[%emt
00:00:44]} 38. Ra6+ {[%clk 00:00:35]} {[%emt 00:01:02]} Kf5 {[%clk 00:07:38]}
{[%emt 00:01:12]} 39. b6 {[%clk 00:00:51]} {[%emt 00:00:16]} a3 {[%clk
00:07:27]} {[%emt 00:00:42]} 40. Ra5+ {[%clk 00:01:02]} {[%emt 00:00:19]} Kg6
{[%clk 00:05:02]} {[%emt 00:02:54]} 41. Ra6 {[%clk 00:27:10]} {[%emt 00:04:23]}
Kg5 {[%clk 00:34:29]} {[%emt 00:01:02]} 42. Ra5+ {[%clk 00:27:03]} {[%emt
00:00:38]} Kh6 {[%clk 00:34:45]} {[%emt 00:00:13]} 43. Ra6 {[%clk 00:26:40]}
{[%emt 00:00:54]} g6 {[%clk 00:34:32]} {[%emt 00:00:43]} 44. Kg3 {[%clk
00:24:49]} {[%emt 00:02:20]} a2 {[%clk 00:34:08]} {[%emt 00:00:53]} 45. Rxa2
{[%clk 00:24:31]} {[%emt 00:00:50]} Rxb6 {[%clk 00:34:30]} {[%emt 00:00:07]} 46.
Ra4 {[%clk 00:24:50]} {[%emt 00:00:12]} Rb1 {[%clk 00:33:38]} {[%emt 00:01:22]}
47. Rc4 {[%clk 00:22:42]} {[%emt 00:02:38]} Rg1+ {[%clk 00:33:41]} {[%emt
00:00:27]} 48. Kh4 {[%clk 00:22:44]} {[%emt 00:00:26]} g5+ {[%clk 00:32:19]}
{[%emt 00:01:53]} 49. Kh3 {[%clk 00:23:10]} {[%emt 00:00:04]} h4 {[%clk
00:30:24]} {[%emt 00:02:26]} 50. f4 {[%clk 00:22:15]} {[%emt 00:01:25]} Rg3+
{[%clk 00:30:15]} {[%emt 00:00:38]} 51. Kh2 {[%clk 00:22:40]} {[%emt 00:00:05]}
g4 {[%clk 00:29:21]} {[%emt 00:01:24]} 52. Rc8 {[%clk 00:14:53]} {[%emt
00:08:18]} Kg6 {[%clk 00:27:03]} {[%emt 00:02:46]} 53. Rh8 {[%clk 00:09:32]}
{[%emt 00:05:53]} Rh3+ {[%clk 00:27:14]} {[%emt 00:00:19]} 54. Kg2 {[%clk
00:09:52]} {[%emt 00:00:10]} Kf5 {[%clk 00:27:17]} {[%emt 00:00:27]} 55. Rf8+
{[%clk 00:09:48]} {[%emt 00:00:34]} Ke4 {[%clk 00:27:19]} {[%emt 00:00:26]} 56.
f5 {[%clk 00:09:40]} {[%emt 00:00:39]} Rf3 {[%clk 00:25:31]} {[%emt 00:02:17]}
57. f6 {[%clk 00:09:51]} {[%emt 00:00:21]} h3+ {[%clk 00:18:18]} {[%emt
00:07:42]} 58. Kh2 {[%clk 00:04:33]} {[%emt 00:05:48]} Rf2+ {[%clk 00:10:58]}
{[%emt 00:07:49]} 59. Kg3 {[%clk 00:04:46]} {[%emt 00:00:17]} Rg2+ {[%clk
00:10:52]} {[%emt 00:00:37]} 60. Kh4 {[%clk 00:05:11]} {[%emt 00:00:06]} h2
{[%clk 00:09:53]} {[%emt 00:01:28]} 61. Kg5 {[%clk 00:05:19]} {[%emt 00:00:23]}
h1=Q {[%clk 00:09:33]} {[%emt 00:00:50]} 62. Re8+ {[%clk 00:05:45]} {[%emt
00:00:03]} Kd5 {[%clk 00:08:49]} {[%emt 00:01:11]} 63. f7 {[%clk 00:05:53]}
{[%emt 00:00:26]} Qc1 {[%clk 00:08:43]} {[%emt 00:00:33]} 64. Kg6 {[%clk
00:06:09]} {[%emt 00:00:16]} Qc2+ {[%clk 00:06:59]} {[%emt 00:02:13]} 65. Kg7
{[%clk 00:06:26]} {[%emt 00:00:15]} Qc3+ {[%clk 00:06:15]} {[%emt 00:01:13]} 66.
Kg8 {[%clk 00:06:20]} {[%emt 00:00:36]} Rf2 {[%clk 00:06:05]} {[%emt 00:00:39]}
67. Rd8+ {[%clk 00:06:37]} {[%emt 00:00:14]} Ke5 {[%emt 00:03:40]} 0-1

[Event "Masters Tournament (MTO)"]
[Site "Biel, Switzerland"]
[Date "2026.07.20"]
[Round "7.42"]
[White "Magnussen, Petur Gardar"]
[Black "Petry, Martin"]
[Result "1/2-1/2"]
[TimeControl "100+30+30sec/move"]
[WhiteTitle "-"]
[BlackTitle "-"]
[WhiteFideId "7203802"]
[BlackFideId "1352318"]
[WhiteElo "1957"]
[BlackElo "1999"]

1. e4 {[%clk 01:40:58]} {[%emt 00:00:01]} g6 {[%clk 01:40:58]} {[%emt
00:00:04]} 2. d4 {[%clk 01:41:18]} {[%emt 00:00:08]} Bg7 {[%clk 01:41:22]}
{[%emt 00:00:06]} 3. Nc3 {[%clk 01:41:42]} {[%emt 00:00:07]} d6 {[%clk
01:41:42]} {[%emt 00:00:08]} 4. Be3 {[%clk 01:41:50]} {[%emt 00:00:22]} a6
{[%clk 01:41:49]} {[%emt 00:00:24]} 5. Qd2 {[%clk 01:41:04]} {[%emt 00:01:16]}
b5 {[%clk 01:42:04]} {[%emt 00:00:15]} 6. f3 {[%clk 01:41:03]} {[%emt
00:00:30]} Nd7 {[%clk 01:41:38]} {[%emt 00:00:56]} 7. O-O-O {[%clk 01:39:29]}
{[%emt 00:02:04]} b4 {[%clk 01:40:02]} {[%emt 00:02:07]} 8. Nce2 {[%clk
01:30:18]} {[%emt 00:09:41]} a5 {[%clk 01:39:14]} {[%emt 00:01:18]} 9. h4
{[%clk 01:29:19]} {[%emt 00:01:28]} Nb6 {[%clk 01:36:41]} {[%emt 00:03:03]} 10.
Nf4 {[%clk 01:23:49]} {[%emt 00:06:00]} h5 {[%clk 01:33:32]} {[%emt 00:03:39]}
11. Ngh3 {[%clk 01:18:16]} {[%emt 00:06:03]} d5 {[%clk 01:12:08]} {[%emt
00:21:55]} 12. e5 {[%clk 00:48:00]} {[%emt 00:30:46]} Bxh3 {[%clk 01:05:42]}
{[%emt 00:06:55]} 13. Rxh3 {[%clk 00:43:25]} {[%emt 00:05:06]} e6 {[%clk
01:04:40]} {[%emt 00:01:32]} 14. Bb5+ {[%clk 00:39:03]} {[%emt 00:04:51]} Nd7
{[%clk 01:00:37]} {[%emt 00:04:33]} 15. Qd3 {[%clk 00:18:17]} {[%emt 00:21:17]}
Ne7 {[%clk 00:59:23]} {[%emt 00:01:44]} 16. Bxd7+ {[%clk 00:15:04]} {[%emt
00:03:43]} Qxd7 {[%clk 00:59:27]} {[%emt 00:00:25]} 17. g4 {[%clk 00:15:07]}
{[%emt 00:00:27]} Bh6 {[%clk 00:57:47]} {[%emt 00:02:10]} 18. Kb1 {[%clk
00:14:08]} {[%emt 00:01:30]} Bxf4 {[%clk 00:50:19]} {[%emt 00:07:57]} 19. Bxf4
{[%clk 00:14:24]} {[%emt 00:00:14]} Qc6 {[%clk 00:50:08]} {[%emt 00:00:40]} 20.
Bg5 {[%clk 00:13:25]} {[%emt 00:01:30]} Nc8 {[%clk 00:42:56]} {[%emt 00:07:42]}
21. Qe3 {[%clk 00:10:58]} {[%emt 00:02:57]} Nb6 {[%clk 00:42:36]} {[%emt
00:00:50]} 22. Qf4 {[%clk 00:09:59]} {[%emt 00:01:29]} Qd7 {[%clk 00:32:07]}
{[%emt 00:10:59]} 23. Bf6 {[%clk 00:09:01]} {[%emt 00:01:29]} Rh7 {[%clk
00:31:08]} {[%emt 00:01:29]} 24. gxh5 {[%clk 00:08:26]} {[%emt 00:01:04]} Rxh5
{[%clk 00:31:20]} {[%emt 00:00:18]} 25. Rg1 {[%clk 00:08:44]} {[%emt 00:00:12]}
b3 {[%clk 00:23:50]} {[%emt 00:08:00]} 26. cxb3 {[%clk 00:05:01]} {[%emt
00:04:13]} a4 {[%clk 00:24:07]} {[%emt 00:00:13]} 27. Rc1 {[%clk 00:03:32]}
{[%emt 00:01:59]} Qb5 {[%clk 00:19:19]} {[%emt 00:05:19]} 28. Qe3 {[%clk
00:03:02]} {[%emt 00:00:59]} axb3 {[%clk 00:10:45]} {[%emt 00:09:04]} 29. axb3
{[%clk 00:02:57]} {[%emt 00:00:36]} c6 {[%clk 00:03:40]} {[%emt 00:07:35]} 30.
Qc3 {[%clk 00:02:14]} {[%emt 00:01:12]} Rc8 {[%clk 00:01:43]} {[%emt 00:02:28]}
31. Bg5 {[%clk 00:00:50]} {[%emt 00:01:53]} Nd7 {[%clk 00:01:16]} {[%emt
00:00:57]} 32. b4 {[%emt 00:00:43]} Nb6 {[%clk 00:01:13]} {[%emt 00:00:32]} 33.
b3 {[%clk 00:00:37]} {[%emt 00:00:32]} Rh8 {[%clk 00:01:06]} {[%emt 00:00:36]}
34. Kb2 {[%clk 00:00:46]} {[%emt 00:00:20]} Rc7 {[%clk 00:00:36]} {[%emt
00:01:01]} 35. Rh2 {[%clk 00:00:40]} {[%emt 00:00:36]} Kd7 {[%clk 00:00:56]}
{[%emt 00:00:10]} 36. Ra1 {[%clk 00:00:53]} {[%emt 00:00:17]} Ra8 {[%clk
00:01:09]} {[%emt 00:00:18]} 37. Rxa8 {[%clk 00:00:48]} {[%emt 00:00:35]} Nxa8
{[%clk 00:01:37]} {[%emt 00:00:01]} 38. h5 {[%clk 00:00:42]} {[%emt 00:00:36]}
gxh5 {[%clk 00:01:36]} {[%emt 00:00:31]} 39. Rxh5 {[%clk 00:00:50]} {[%emt
00:00:22]} Qe2+ {[%clk 00:01:24]} {[%emt 00:00:41]} 40. Bd2 {[%clk 00:01:01]}
{[%emt 00:00:19]} Kc8 {[%clk 00:00:49]} {[%emt 00:01:06]} 41. Rh8+ {[%clk
00:00:40]} {[%emt 00:00:52]} Kb7 {[%clk 00:30:29]} {[%emt 00:00:49]} 42. Kc2
{[%clk 00:28:59]} {[%emt 00:02:11]} Nb6 {[%clk 00:23:38]} {[%emt 00:07:21]} 43.
Rh7 {[%clk 00:25:18]} {[%emt 00:04:11]} Nc8 {[%clk 00:22:46]} {[%emt 00:01:22]}
44. Qe3 {[%clk 00:21:45]} {[%emt 00:04:03]} Qg2 {[%clk 00:19:15]} {[%emt
00:04:01]} 45. Kb2 {[%clk 00:21:14]} {[%emt 00:01:02]} Na7 {[%clk 00:18:31]}
{[%emt 00:01:13]} 46. Qf4 {[%clk 00:21:04]} {[%emt 00:00:40]} Qg6 {[%clk
00:18:25]} {[%emt 00:00:35]} 47. Rh6 {[%clk 00:21:19]} {[%emt 00:00:16]} Qd3
{[%clk 00:15:22]} {[%emt 00:03:33]} 48. Qe3 {[%clk 00:20:03]} {[%emt 00:01:45]}
Qf5 {[%clk 00:14:09]} {[%emt 00:01:43]} 49. Rf6 {[%clk 00:16:47]} {[%emt
00:03:47]} Qh5 {[%clk 00:10:14]} {[%emt 00:04:24]} 50. Rh6 {[%clk 00:11:26]}
{[%emt 00:05:51]} 1/2-1/2